bitfinex-derivatives/quotes_BTCF0:USTF0_20251216
["timestamp","ask_amount","ask_price","bid_price","bid_amount"]
[1765860830334,0.14854,85763.0,85762.0,0.3233326]
[1765860830828,0.29504,85763.0,85762.0,0.3233326]
[1765860831535,0.14854,85763.0,85762.0,0.3233326]
[1765860832422,0.29504,85768.0,85767.0,0.323332]
[1765860833534,0.29604,85768.0,85767.0,0.323332]
[1765860834032,0.29504,85768.0,85767.0,0.323332]
[1765860834238,0.29504,85768.0,85767.0,0.324332]
[1765860834637,0.14854,85768.0,85767.0,0.323332]
[1765860835338,0.14854,85768.0,85767.0,0.324332]
[1765860835637,0.29504,85768.0,85767.0,0.324332]
[1765860835933,0.14854,85768.0,85767.0,0.324332]
[1765860836237,0.2952149,85773.0,85772.0,0.3233313]
[1765860836440,0.1487149,85773.0,85772.0,0.3233313]
[1765860837027,0.2952149,85773.0,85772.0,0.3233313]
[1765860837443,0.2952149,85773.0,85772.0,0.3243313]
[1765860838042,0.0001749,85773.0,85772.0,0.3243313]
[1765860838340,0.1487149,85773.0,85772.0,0.3243313]
[1765860838541,0.2952149,85773.0,85772.0,0.3233313]
[1765860839143,0.2952149,85773.0,85772.0,0.3243313]
[1765860840042,0.2952149,85773.0,85772.0,0.3253313]
[1765860840240,0.0001749,85773.0,85772.0,0.3253313]
[1765860840541,0.0001749,85773.0,85772.0,0.3243313]
[1765860840741,0.3608,85787.0,85777.0,0.31167]
[1765860841333,0.14866373,85778.0,85777.0,0.31167]
[1765860841941,0.14866373,85778.0,85772.0,0.2604835]
[1765860841942,0.29504,85773.0,85772.0,0.2604835]
[1765860842248,0.29504,85773.0,85772.0,0.001]
[1765860842742,0.2879,85758.0,85757.0,0.0837598]
[1765860843046,0.2879,85758.0,85756.0,0.0001749]
[1765860843047,0.2879,85757.0,85756.0,0.0001749]
[1765860843441,0.2879,85757.0,85756.0,0.1491084]
[1765860843842,0.2879,85757.0,85756.0,0.2966684]
[1765860844247,0.2879,85757.0,85756.0,0.2850049]
[1765860844639,0.2879,85757.0,85756.0,0.0001749]
[1765860845452,0.2879,85757.0,85756.0,0.0011749]
[1765860846244,0.2879,85757.0,85756.0,0.1384449]
[1765860846554,0.2879,85757.0,85756.0,0.2860049]
[1765860848049,0.1422,85757.0,85756.0,0.2860049]
[1765860848649,0.6488749,85766.0,85765.0,0.2964923]
[1765860848956,0.2879,85757.0,85756.0,0.2860049]
[1765860849255,0.2879,85757.0,85756.0,0.3697647]
[1765860849749,0.6498749,85766.0,85765.0,0.2964923]
[1765860849951,0.3619749,85766.0,85761.0,0.0116628]
[1765860850154,0.3736371,85766.0,85761.0,0.0116628]
[1765860850346,0.2879,85762.0,85761.0,0.1489328]
[1765860850547,0.2879,85762.0,85761.0,0.2964928]
[1765860852353,0.2879,85762.0,85761.0,0.3821728]
[1765860852763,0.2879,85759.0,85758.0,0.09545552]
[1765860853058,0.2879,85759.0,85758.0,0.08379232]
[1765860853253,0.2879,85759.0,85757.0,0.08379232]
[1765860853254,0.2879,85758.0,85757.0,0.08379232]
[1765860853455,0.2995634,85757.0,85756.0,0.0001749]
[1765860855353,0.2995634,85757.0,85756.0,0.0118384]
[1765860855662,0.2995634,85757.0,85756.0,0.2966684]
[1765860855855,0.2995634,85757.0,85756.0,0.0118384]
[1765860856154,0.2995634,85757.0,85756.0,0.0001749]
[1765860858364,0.1422,85757.0,85756.0,0.2850049]
[1765860858856,0.503,85759.0,85758.0,0.28483]
[1765860859057,0.2879,85758.0,85757.0,0.1489334]
[1765860859960,0.2879,85758.0,85757.0,0.2964934]
[1765860861259,0.2879,85758.0,85757.0,0.2974934]
[1765860861856,0.2879,85758.0,85757.0,0.2964934]
[1765860865658,0.2879,85758.0,85757.0,0.3821734]
[1765860866165,0.2879,85758.0,85757.0,0.2964934]
[1765860866360,0.2879,85758.0,85757.0,0.2974934]
[1765860866561,0.2879,85758.0,85757.0,0.3841734]
[1765860868067,0.2879,85758.0,85757.0,0.3831734]
[1765860868970,0.2879,85758.0,85757.0,0.3821734]
[1765860869670,0.2879,85758.0,85757.0,0.3831734]
[1765860870263,0.2995623,85765.0,85764.0,0.2964924]
[1765860870465,0.3726371,85766.0,85763.0,0.0116624]
[1765860870765,0.6488749,85766.0,85765.0,0.28483]
[1765860871070,0.2880749,85766.0,85765.0,0.28483]
[1765860875458,0.2880749,85766.0,85765.0,0.2964923]
[1765860875657,0.2880749,85766.0,85765.0,0.28483]
[1765860878059,0.2890749,85766.0,85765.0,0.28483]
[1765860878671,0.0001749,85766.0,85765.0,0.28483]
[1765860880275,0.0001749,85766.0,85765.0,0.28683]
[1765860881571,0.26254373,85778.0,85777.0,0.2802707]
[1765860883871,0.26254373,85778.0,85777.0,0.26861]
[1765860888282,0.26254373,85778.0,85777.0,0.12952]
[1765860888981,0.26254373,85778.0,85777.0,0.26861]
[1765860889185,0.26242,85768.0,85767.0,0.08378823]
[1765860889371,0.26242,85765.0,85764.0,0.35239823]
[1765860889681,0.13161,85765.0,85764.0,0.35139]
[1765860889880,0.2740817,85770.0,85769.0,0.2802717]
[1765860890270,0.26242,85770.0,85769.0,0.2802717]
[1765860892181,3.73e-06,85778.0,85777.0,0.26861]
[1765860892386,4.9e-06,85786.0,85785.0,0.3596996]
[1765860892580,0.3608,85806.0,85785.0,0.3596996]
[1765860892581,0.49241,85806.0,85805.0,0.26861]
[1765860892879,0.33832,85800.0,85799.0,0.1411776]
[1765860893184,0.33832,85800.0,85799.0,0.2802676]
[1765860893573,0.3499775,85800.0,85799.0,0.26861]
[1765860894472,0.3499775,85800.0,85799.0,0.12952]
[1765860894677,0.26242,85794.0,85793.0,0.6410684]
[1765860895079,0.26142,85794.0,85793.0,0.6410684]
[1765860896386,0.26142,85794.0,85791.0,0.0001749]
[1765860896387,0.33832,85792.0,85791.0,0.0001749]
[1765860896883,0.33832,85792.0,85791.0,0.2687849]
[1765860898278,0.26242,85792.0,85791.0,0.2687849]
[1765860898677,0.33832,85792.0,85791.0,0.2687849]
[1765860898986,0.33932,85792.0,85791.0,0.0001749]
[1765860899372,0.26242,85782.0,85781.0,0.08374068]
[1765860899693,0.2740838,85754.0,85753.0,0.26861]
[1765860900579,0.26242,85754.0,85753.0,0.2802739]
[1765860901181,0.26242,85754.0,85753.0,0.26861]
[1765860901370,0.26142,85754.0,85753.0,0.26861]
[1765860902177,0.26142,85754.0,85753.0,0.12952]
[1765860902574,0.26142,85754.0,85753.0,0.27942]
[1765860903072,0.3175,85751.0,85750.0,0.01208521]
[1765860903289,0.3175,85746.0,85745.0,0.3206999]
[1765860903668,0.3175,85746.0,85745.0,0.32139005]
[1765860903982,0.6783,85746.0,85745.0,0.32139005]
[1765860904186,0.6783,85746.0,85745.0,0.01253005]
[1765860904485,0.6783,85746.0,85745.0,0.32139005]
[1765860904684,0.6783,85746.0,85745.0,0.3090349]
[1765860905377,0.6793,85746.0,85745.0,0.3090349]
[1765860905573,0.6793,85746.0,85745.0,0.0001749]
[1765860907176,0.6813,85746.0,85745.0,0.0001749]
[1765860907478,0.6803,85746.0,85745.0,0.0001749]
[1765860907878,0.6813,85746.0,85745.0,0.0001749]
[1765860908278,0.6793,85746.0,85745.0,0.0001749]
[1765860908486,0.6803,85746.0,85745.0,0.0001749]
[1765860909380,0.6793,85746.0,85745.0,0.0001749]
[1765860909588,0.6803,85746.0,85745.0,0.0001749]
[1765860911790,0.6793,85746.0,85745.0,0.0001749]
[1765860911992,0.6813,85746.0,85745.0,0.0001749]
[1765860912691,0.6803,85746.0,85745.0,0.0001749]
[1765860913191,0.6793,85746.0,85745.0,0.0001749]
[1765860913391,0.6803,85746.0,85745.0,0.0001749]
[1765860915594,0.6793,85746.0,85745.0,0.0001749]
[1765860915892,0.6803,85746.0,85745.0,0.0001749]
[1765860916089,0.6793,85746.0,85745.0,0.0001749]
[1765860916297,0.6803,85746.0,85745.0,0.0001749]
[1765860916684,0.6793,85746.0,85745.0,0.0001749]
[1765860916886,0.6803,85746.0,85745.0,0.0001749]
[1765860919093,0.6803,85746.0,85745.0,0.1591349]
[1765860919094,0.6793,85746.0,85745.0,0.1591349]
[1765860919293,0.6803,85746.0,85745.0,0.3090349]
[1765860919494,0.3628,85746.0,85745.0,0.3090349]
[1765860919694,0.6783,85760.0,85759.0,0.3205231]
[1765860920497,0.6783,85760.0,85759.0,0.30886]
[1765860921201,0.0001749,85762.0,85757.0,0.1017033]
[1765860921202,0.0001749,85762.0,85761.0,0.30886]
[1765860922394,0.1599949,85762.0,85761.0,0.30886]
[1765860922804,0.1619949,85762.0,85761.0,0.30886]
[1765860923998,0.0021749,85762.0,85761.0,0.30886]
[1765860925993,0.2729749,85775.0,85774.0,0.30886]
[1765860926197,0.5904749,85775.0,85774.0,0.30886]
[1765860926404,0.6021358,85775.0,85774.0,0.30886]
[1765860926604,0.5921358,85775.0,85774.0,0.30886]
[1765860927203,0.5931358,85775.0,85774.0,0.30886]
[1765860927802,0.3175,85772.0,85771.0,0.249]
[1765860928111,0.3175,85772.0,85771.0,0.3989]
[1765860929013,0.15982,85772.0,85771.0,0.7597]
[1765860929309,0.001,85775.0,85771.0,0.7597]
[1765860929310,0.001,85775.0,85774.0,0.30886]
[1765860929615,0.00017419,85783.0,85782.0,0.32052]
[1765860929911,0.00017419,85783.0,85782.0,0.68132]
[1765860930605,0.3175,85800.0,85799.0,0.15896]
[1765860930807,0.3175,85800.0,85799.0,0.1706177]
[1765860931318,0.3175,85800.0,85799.0,0.3205177]
[1765860931613,0.3175,85800.0,85799.0,0.33253107]
[1765860931813,0.1505736,85792.0,85760.0,0.09004]
[1765860932004,0.3175,85766.0,85765.0,0.30886]
[1765860932206,0.1695017,85770.0,85769.0,0.30955]
[1765860932611,0.3608,85773.0,85772.0,0.30955]
[1765860934014,0.1580149,85781.0,85780.0,0.30955]
[1765860934200,0.3174649,85781.0,85780.0,0.30955]
[1765860935016,0.3289512,85773.0,85772.0,0.31055]
[1765860935314,0.6897512,85773.0,85772.0,0.31255]
[1765860935817,0.6897512,85773.0,85772.0,0.30955]
[1765860936219,0.67809,85773.0,85772.0,0.30955]
[1765860936812,0.51864,85773.0,85772.0,0.30955]
[1765860937116,0.0001749,85781.0,85779.0,0.0116604]
[1765860937117,0.31729,85780.0,85779.0,0.0116604]
[1765860937318,0.0001749,85781.0,85780.0,0.30955]
[1765860938529,0.0001749,85781.0,85780.0,0.31055]
[1765860938815,0.3174649,85781.0,85780.0,0.31055]
[1765860939019,0.1580149,85781.0,85780.0,0.31055]
[1765860939317,0.0001749,85781.0,85780.0,0.31055]
[1765860939523,0.0001749,85781.0,85780.0,0.30955]
[1765860939820,0.3608,85783.0,85782.0,0.30955]
[1765860941117,0.6897498,85783.0,85782.0,0.30955]
[1765860941417,0.31729,85781.0,85780.0,0.002]
[1765860941825,0.31629,85781.0,85780.0,0.001]
[1765860942211,0.1695012,85774.0,85773.0,0.30955]
[1765860942424,0.15784,85774.0,85773.0,0.30955]
[1765860942720,0.31729,85778.0,85777.0,0.30955]
[1765860944213,0.31729,85778.0,85777.0,0.3212107]
[1765860944920,0.31729,85778.0,85777.0,0.3222107]
[1765860945122,0.15784,85778.0,85777.0,0.3222107]
[1765860945324,0.67809,85783.0,85782.0,0.32121]
[1765860946010,0.51864,85783.0,85782.0,0.32121]
[1765860946207,0.3608,85783.0,85782.0,0.32121]
[1765860946920,0.3608,85797.0,85782.0,0.32121]
[1765860946921,0.3608,85797.0,85796.0,0.3212081]
[1765860947221,0.51864,85811.0,85810.0,0.30955]
[1765860947521,0.3608,85811.0,85810.0,0.30955]
[1765860948129,0.67809,85811.0,85810.0,0.30955]
[1765860948510,0.31729,85811.0,85810.0,0.30955]
[1765860948714,0.31929,85811.0,85810.0,0.30955]
[1765860949021,0.002,85811.0,85810.0,0.30955]
[1765860950913,0.31929,85811.0,85810.0,0.30955]
[1765860951120,0.31929,85811.0,85810.0,0.15547]
[1765860951624,0.68009,85811.0,85810.0,0.30955]
[1765860951823,0.15784,85804.0,85803.0,0.321207]
[1765860952024,0.3628,85811.0,85800.0,0.09761]
[1765860952025,0.31729,85810.0,85809.0,0.1671262]
[1765860952421,0.31729,85810.0,85809.0,0.3212062]
[1765860953325,0.31729,85807.0,85806.0,0.09761]
[1765860953828,0.31729,85808.0,85807.0,0.3212065]
[1765860954611,0.31729,85808.0,85807.0,0.1671265]
[1765860954910,0.31729,85808.0,85807.0,0.3212065]
[1765860955223,0.31929,85808.0,85807.0,0.3212065]
[1765860955420,0.002,85808.0,85807.0,0.3212065]
[1765860956326,0.36313053,85818.0,85817.0,0.3212052]
[1765860956524,0.52097053,85818.0,85817.0,0.3212052]
[1765860956922,0.36313053,85818.0,85817.0,0.3212052]
[1765860957527,0.36513053,85818.0,85817.0,0.3212052]
[1765860957829,0.00433053,85818.0,85817.0,0.3212052]
[1765860959329,0.6897428,85835.0,85834.0,0.30955]
[1765860959526,0.3608,85835.0,85834.0,0.30955]
[1765860959728,0.3608,85844.0,85843.0,0.30955]
[1765860960128,0.3608,85844.0,85843.0,0.3212017]
[1765860960332,0.3608,85844.0,85843.0,0.33345449]
[1765860960626,0.67809,85844.0,85843.0,0.32180279]
[1765860961224,0.67809,85844.0,85843.0,0.32280279]
[1765860961628,0.3608,85844.0,85843.0,0.32280279]
[1765860962030,0.67809,85844.0,85843.0,0.32280279]
[1765860962529,0.3608,85844.0,85843.0,0.32280279]
[1765860963128,0.33722944,85858.0,85857.0,0.17493]
[1765860963329,0.33722944,85858.0,85857.0,0.33897]
[1765860963635,0.3349,85853.0,85852.0,0.3506204]
[1765860963931,0.6957,85853.0,85852.0,0.3506204]
[1765860964331,0.3349,85838.0,85829.0,0.61536]
[1765860964521,0.3349,85836.0,85835.0,0.33914479]
[1765860964719,0.6957,85836.0,85835.0,0.33914479]
[1765860964927,0.6957,85836.0,85835.0,0.35135057]
[1765860966125,0.6937,85836.0,85835.0,0.35135057]
[1765860966732,0.6937,85836.0,85835.0,0.33914479]
[1765860967030,0.6937,85836.0,85835.0,0.00017479]
[1765860967737,0.53006,85836.0,85835.0,0.34014479]
[1765860968037,0.6957,85836.0,85835.0,0.00017479]
[1765860968547,0.6957,85836.0,85835.0,0.33914479]
[1765860968938,0.6957,85836.0,85835.0,0.34014479]
[1765860969736,0.6957,85836.0,85835.0,0.17610479]
[1765860969940,0.6957,85836.0,85835.0,0.00117479]
[1765860970230,0.6957,85836.0,85835.0,0.01282759]
[1765860970736,0.3349,85843.0,85842.0,0.4555318]
[1765860970930,0.3349,85839.0,85838.0,0.1865823]
[1765860971529,0.3349,85839.0,85838.0,0.0116523]
[1765860971837,0.3608,85845.0,85835.0,0.00017479]
[1765860971838,0.6957,85845.0,85844.0,0.3506216]
[1765860974122,0.6957,85845.0,85844.0,0.001]
[1765860976638,0.3465526,85836.0,85835.0,0.00017479]
[1765860976836,0.7073526,85836.0,85835.0,0.00017479]
[1765860980832,0.6957,85836.0,85835.0,0.33914479]
[1765860981038,0.6957,85836.0,85835.0,0.00017479]
[1765860981838,0.6957,85836.0,85835.0,0.33914479]
[1765860982733,0.3349,85836.0,85835.0,0.33914479]
[1765860984639,0.3608,85845.0,85844.0,0.3506216]
[1765860984938,0.3608,85856.0,85844.0,0.3506216]
[1765860984939,0.6957,85856.0,85855.0,0.3506201]
[1765860985346,0.3349,85849.0,85848.0,0.011651]
[1765860985947,0.4422,85856.0,85855.0,0.33897]
[1765860985948,0.6957,85856.0,85855.0,0.33897]
[1765860986246,0.6927,85856.0,85855.0,0.33897]
[1765860986645,0.5957,85856.0,85855.0,0.33897]
[1765860987347,0.2608,85856.0,85855.0,0.33897]
[1765860987843,0.43006,85856.0,85855.0,0.33897]
[1765860988438,0.5957,85856.0,85855.0,0.33897]
[1765860989746,0.43006,85856.0,85855.0,0.33897]
[1765860990351,0.3349,85856.0,85855.0,0.33897]
[1765860992045,0.3349,85851.0,85850.0,0.3506207]
[1765860994650,0.34746,85847.0,85846.0,0.0116513]
[1765860994846,0.34746,85842.0,85841.0,0.550322]
[1765860995648,0.34746,85842.0,85841.0,0.722272]
[1765860995842,0.3608,85857.0,85841.0,0.722272]
[1765860995843,0.7199098,85857.0,85856.0,0.34982]
[1765860996044,0.34746,85855.0,85854.0,0.0116501]
[1765860996648,0.34746,85855.0,85841.0,0.3608]
[1765860996649,0.34746,85842.0,85841.0,0.722272]
[1765860997152,0.60826,85857.0,85856.0,0.4673899]
[1765860997352,0.34746,85857.0,85856.0,0.4673899]
[1765860997852,0.3608,85873.0,85857.0,0.34982]
[1765860998047,0.3608,85873.0,85857.0,0.71062]
[1765860998744,0.0116481,85870.0,85857.0,0.71062]
[1765860998943,0.34978944,85858.0,85857.0,0.71062]
[1765860999145,0.34746,85851.0,85850.0,0.71062]
[1765860999555,0.0116498,85857.0,85856.0,0.34982]
[1765860999556,0.3591098,85857.0,85856.0,0.34982]
[1765860999953,0.3591098,85857.0,85850.0,0.3608]
[1765861000140,0.3591106,85851.0,85850.0,0.3608]
[1765861000341,0.359112,85841.0,85840.0,0.17787]
[1765861000654,0.3591126,85836.0,85830.0,0.01186138]
[1765861004158,0.3591126,85836.0,85817.0,0.3608]
[1765861005048,0.359114,85826.0,85815.0,0.73212]
[1765861005254,0.719914,85826.0,85815.0,0.73212]
[1765861005560,0.4456555,85815.0,85814.0,0.01222502]
[1765861005753,0.3591166,85807.0,85806.0,0.45574]
[1765861006063,0.3591166,85807.0,85806.0,0.46761327]
[1765861006262,0.34746,85807.0,85806.0,0.46761327]
[1765861006954,0.34746,85807.0,85806.0,0.36169327]
[1765861007757,0.34746,85807.0,85806.0,0.01187327]
[1765861007953,0.34746,85802.0,85801.0,0.53867]
[1765861008148,0.34746,85802.0,85801.0,0.71062]
[1765861009159,0.34746,85802.0,85801.0,0.71162]
[1765861009350,0.34746,85802.0,85801.0,0.72385938]
[1765861009549,0.34746,85802.0,85801.0,0.72285938]
[1765861009749,0.34746,85802.0,85801.0,0.72385938]
[1765861010646,0.34746,85802.0,85801.0,0.19110938]
[1765861011057,0.34746,85802.0,85801.0,0.001]
[1765861011264,0.70826,85802.0,85801.0,0.001]
[1765861011567,0.70826,85802.0,85800.0,8.314e-05]
[1765861011568,0.3591174,85801.0,85800.0,8.314e-05]
[1765861011760,0.34746,85780.0,85779.0,0.45574]
[1765861012061,0.34746,85780.0,85779.0,0.46775482]
[1765861012563,0.17689,85780.0,85779.0,0.46775482]
[1765861012970,0.34746,85780.0,85779.0,0.46875482]
[1765861013866,0.17689,85780.0,85779.0,0.46875482]
[1765861014967,0.34746,85780.0,85779.0,0.46875482]
[1765861015265,0.35929409,85788.0,85787.0,0.34982]
[1765861019470,0.35929399,85788.0,85787.0,0.34982]
[1765861019769,0.3591202,85780.0,85779.0,0.46775482]
[1765861020359,0.3591202,85780.0,85779.0,0.01201482]
[1765861020560,0.34746,85779.0,85778.0,0.00233161]
[1765861020765,0.34746,85779.0,85778.0,0.18020161]
[1765861021172,0.34746,85779.0,85778.0,0.3759317]
[1765861021364,0.00017479,85788.0,85787.0,0.3614793]
[1765861021565,0.3608,85799.0,85784.0,0.10592]
[1765861021566,0.3608,85799.0,85798.0,0.34982]
[1765861021871,0.70826,85799.0,85798.0,0.34982]
[1765861022065,0.53769,85799.0,85798.0,0.34982]
[1765861022265,0.17689,85799.0,85798.0,0.34982]
[1765861022968,0.0116574,85802.0,85800.0,0.32404]
[1765861023168,0.16590987,85801.0,85800.0,0.32404]
[1765861023470,9.987e-05,85801.0,85800.0,0.32404]
[1765861024168,0.34770727,85801.0,85798.0,0.001]
[1765861024471,0.33595,85799.0,85798.0,0.001]
[1765861024861,0.33595,85791.0,85790.0,0.32421479]
[1765861026263,0.33595,85798.0,85797.0,0.42655]
[1765861028372,9.987e-05,85801.0,85800.0,0.32404]
[1765861031579,0.33604987,85801.0,85800.0,0.32504]
[1765861032772,0.33604987,85801.0,85800.0,0.3356975]
[1765861033278,0.33604987,85801.0,85800.0,0.3366975]
[1765861034871,9.987e-05,85801.0,85800.0,0.3366975]
[1765861035872,0.33604987,85801.0,85800.0,0.32504]
[1765861036083,0.33604987,85801.0,85800.0,0.32604]
[1765861036484,0.33604987,85801.0,85800.0,0.32504]
[1765861036671,0.33604987,85801.0,85800.0,0.32604]
[1765861037382,0.33604987,85801.0,85800.0,0.32504]
[1765861038179,0.33604987,85801.0,85800.0,0.32404]
[1765861045787,9.987e-05,85801.0,85800.0,0.32404]
[1765861046392,0.33604987,85801.0,85800.0,0.32404]
[1765861046782,0.16590987,85801.0,85800.0,0.32404]
[1765861046983,0.33604987,85801.0,85800.0,0.32404]
[1765861050394,9.987e-05,85801.0,85800.0,0.32404]
[1765861051984,9.987e-05,85801.0,85800.0,0.32504]
[1765861052697,0.00017443,85807.0,85806.0,0.3984367]
[1765861052698,0.15649443,85807.0,85806.0,0.3984367]
[1765861052897,0.30198443,85807.0,85806.0,0.38678]
[1765861053394,0.30198443,85807.0,85806.0,0.3984367]
[1765861054295,0.00017443,85807.0,85806.0,0.3984367]
[1765861054588,0.00017443,85807.0,85806.0,0.3994367]
[1765861056699,0.3608,85819.0,85818.0,0.3109751]
[1765861057086,0.6742639,85827.0,85826.0,0.29932]
[1765861057287,0.330686,85827.0,85826.0,0.29932]
[1765861057484,0.30181,85827.0,85826.0,0.29932]
[1765861058495,0.3134626,85836.0,85835.0,0.29932]
[1765861058696,0.30181,85836.0,85835.0,0.29932]
[1765861058896,0.30181,85830.0,85829.0,0.15143]
[1765861059089,0.30181,85830.0,85829.0,0.29932]
[1765861060295,0.66261,85830.0,85829.0,0.15143]
[1765861060690,0.66261,85830.0,85829.0,0.29932]
[1765861061091,0.30181,85822.0,85821.0,0.3109746]
[1765861061287,0.30181,85822.0,85821.0,0.29932]
[1765861065995,0.3608,85823.0,85822.0,0.3109745]
[1765861067003,0.66261,85823.0,85822.0,0.3109745]
[1765861068204,0.15632,85823.0,85822.0,0.3109745]
[1765861068405,0.30181,85829.0,85828.0,0.29932]
[1765861068595,0.15632,85829.0,85828.0,0.29932]
[1765861069204,0.30181,85829.0,85828.0,0.29932]
[1765861069507,0.66261,85830.0,85829.0,0.3109736]
[1765861070600,0.66261,85830.0,85829.0,0.29932]
[1765861071397,0.30181,85830.0,85829.0,0.3109736]
[1765861071903,0.15632,85830.0,85829.0,0.3109736]
[1765861072604,0.30181,85830.0,85829.0,0.3109736]
[1765861073199,0.15632,85830.0,85829.0,0.3109736]
[1765861073613,0.66261,85837.0,85836.0,0.3109726]
[1765861074307,0.66261,85837.0,85834.0,0.08746]
[1765861074308,0.3134617,85843.0,85842.0,0.3109718]
[1765861074898,0.30181,85843.0,85842.0,0.3109718]
[1765861077409,0.15632,85843.0,85842.0,0.3109718]
[1765861077612,0.3608,85844.0,85843.0,0.29932]
[1765861077905,0.66261,85844.0,85843.0,0.29932]
[1765861078510,0.30181,85844.0,85843.0,0.29932]
[1765861080806,0.30181,85844.0,85836.0,0.37249588]
[1765861080807,0.30181,85837.0,85836.0,0.67181588]
[1765861081005,0.30181,85837.0,85836.0,0.01169588]
[1765861081203,0.30181,85837.0,85836.0,0.3109726]
[1765861081403,0.66261,85845.0,85844.0,0.3109716]
[1765861081603,0.3608,85845.0,85844.0,0.3109716]
[1765861082000,0.66261,85853.0,85852.0,0.3109705]
[1765861083113,0.30181,85853.0,85852.0,0.3109705]
[1765861083803,0.29069,85849.0,85848.0,0.3978409]
[1765861084004,0.29069,85849.0,85848.0,0.38619]
[1765861084814,0.29069,85842.0,85841.0,0.74699]
[1765861086416,0.29069,85836.0,85835.0,0.3103826]
[1765861086612,0.29069,85836.0,85835.0,0.29873]
[1765861088313,0.3608,85849.0,85834.0,0.4599128]
[1765861088314,0.29069,85835.0,85834.0,0.65953]
[1765861088625,0.29069,85831.0,85830.0,0.67118974]
[1765861088814,0.29069,85831.0,85830.0,0.65953]
[1765861089514,0.29069,85831.0,85830.0,0.67154485]
[1765861090113,0.29069,85831.0,85830.0,0.31174485]
[1765861091810,0.29069,85831.0,85830.0,0.31074485]
[1765861093327,0.29069,85831.0,85830.0,0.01201485]
[1765861093615,0.29069,85829.0,85828.0,0.14943479]
[1765861093813,0.29069,85829.0,85828.0,0.29890479]
[1765861094014,0.29069,85829.0,85828.0,0.14943479]
[1765861094205,0.29069,85829.0,85828.0,0.00017479]
[1765861094402,0.29069,85829.0,85828.0,0.01182402]
[1765861094710,0.29069,85829.0,85828.0,0.00017479]
[1765861095403,0.29069,85829.0,85828.0,0.01203673]
[1765861095603,0.29069,85829.0,85828.0,0.16129673]
[1765861096418,0.29069,85829.0,85828.0,0.31076673]
[1765861097319,0.29069,85829.0,85828.0,0.32242043]
[1765861104218,0.29069,85829.0,85828.0,0.32342043]
[1765861105624,0.29069,85829.0,85828.0,0.32242043]
[1765861105827,0.29069,85829.0,85828.0,0.32342043]
[1765861106221,0.29069,85829.0,85828.0,0.32242043]
[1765861106720,0.29069,85829.0,85828.0,0.31076673]
[1765861107326,0.29069,85829.0,85828.0,0.32242043]
[1765861108221,0.29069,85829.0,85828.0,0.31076673]
[1765861111722,0.29069,85829.0,85828.0,0.01203673]
[1765861111923,0.29069,85829.0,85828.0,0.00017479]
[1765861112524,0.31939818,85829.0,85828.0,0.00017479]
[1765861112827,0.31939818,85829.0,85814.0,9.804e-05]
[1765861112828,0.26675,85815.0,85814.0,0.25999804]
[1765861113023,0.2784055,85815.0,85814.0,0.12923804]
[1765861113214,0.2784055,85815.0,85814.0,9.804e-05]
[1765861113416,0.2784055,85815.0,85814.0,0.01207181]
[1765861113613,0.2784055,85815.0,85814.0,0.14121181]
[1765861114124,0.2784055,85815.0,85814.0,0.27197181]
[1765861115427,0.2784055,85815.0,85814.0,0.28362741]
[1765861116529,0.26675,85815.0,85814.0,0.28362741]
[1765861116925,0.13704,85815.0,85814.0,0.28362741]
[1765861117233,0.26675,85815.0,85814.0,0.28362741]
[1765861118635,0.2784049,85820.0,85819.0,0.2599]
[1765861125331,0.3608,85831.0,85823.0,0.2715544]
[1765861125534,0.13704,85831.0,85830.0,0.3480135]
[1765861126736,0.26692479,85837.0,85836.0,0.3480126]
[1765861127237,0.00017479,85837.0,85836.0,0.3480126]
[1765861129437,0.2783999,85857.0,85856.0,0.2599]
[1765861129642,0.26675,85857.0,85856.0,0.2599]
[1765861129940,0.16675,85857.0,85856.0,0.2599]
[1765861130435,0.00232944,85858.0,85857.0,0.2715498]
[1765861131339,0.22839,85870.0,85869.0,0.2599]
[1765861132431,0.22839,85870.0,85869.0,0.27194231]
[1765861135036,0.58919,85870.0,85869.0,0.01204231]
[1765861135230,0.2511892,85861.0,85860.0,0.33636]
[1765861135645,0.2511892,85861.0,85860.0,0.34795431]
[1765861136233,0.2511892,85861.0,85860.0,0.33636]
[1765861136432,0.2511892,85861.0,85860.0,0.07646]
[1765861136634,0.2494901,85855.0,85854.0,0.33636]
[1765861137137,0.2494901,85855.0,85854.0,0.34802791]
[1765861137541,0.2477909,85849.0,85843.0,0.6454]
[1765861137738,0.2477909,85849.0,85848.0,0.33653479]
[1765861138545,0.2477909,85849.0,85848.0,0.34812791]
[1765861141235,0.2477909,85849.0,85848.0,0.00017479]
[1765861141435,0.2477909,85849.0,85848.0,0.33653479]
[1765861141636,0.2477909,85849.0,85848.0,0.34819719]
[1765861142544,0.11807,85849.0,85848.0,0.35984819]
[1765861142744,0.17931424,85860.0,85848.0,0.35984819]
[1765861142745,0.22794,85855.0,85854.0,0.35523]
[1765861142944,0.11397,85855.0,85854.0,0.35523]
[1765861143340,0.1247798,85858.0,85857.0,0.26897]
[1765861144452,0.1248993,85861.0,85860.0,0.34888]
[1765861144933,0.2373093,85861.0,85860.0,0.08]
[1765861145345,0.2373093,85861.0,85860.0,0.34888]
[1765861145549,0.22314,85870.0,85869.0,0.34888]
[1765861145936,0.234788,85870.0,85869.0,0.34888]
[1765861147149,0.234788,85870.0,85869.0,0.08]
[1765861147348,0.234788,85870.0,85869.0,0.34888]
[1765861148151,0.234788,85870.0,85869.0,0.08]
[1765861148336,0.2297892,85861.0,85860.0,0.34888]
[1765861148536,0.21814,85861.0,85860.0,0.3605294]
[1765861148736,0.0116489,85864.0,85863.0,0.26888]
[1765861148938,0.5897479,85871.0,85870.0,0.26888]
[1765861149254,0.2289479,85871.0,85870.0,0.26888]
[1765861149852,0.0116479,85871.0,85870.0,0.26888]
[1765861150355,0.2264479,85871.0,85870.0,0.26888]
[1765861153345,0.3608,85875.0,85874.0,0.26888]
[1765861153546,0.0116473,85876.0,85869.0,0.08]
[1765861153547,0.2214864,85882.0,85881.0,0.26888]
[1765861155747,0.2173864,85882.0,85881.0,0.26888]
[1765861155958,0.2173864,85882.0,85877.0,1.5]
[1765861155959,0.2165669,85878.0,85877.0,1.5]